[Event "46th GRE-chT Premier 2018"]
[Site "Rio Achaia"]
[Date "2018.07.10"]
[Round "1"]
[White "Yilmaz, Mustafa"]
[Black "Macieja, Bartlomiej"]
[Result "1/2-1/2"]
[ECO "D37"]
[WhiteElo "2624"]
[BlackElo "2525"]
[Annotator "ChessBase"]
[PlyCount "70"]
[EventDate "2018.07.10"]
[EventType "team-tourn"]
[EventCountry "GRE"]
[SourceTitle "playchess.com"]
[Source "ChessBase"]
[SourceQuality "1"]
[TimeControl "40/5400+30:1800+30"]

1. d4 {[%emt 0:00:00]} Nf6 {[%emt 0:00:00]} 2. c4 {[%emt 0:00:00]} e6 {[%emt 0:00:00]} 3. Nf3 {[%emt 0:00:00]} d5 {[%emt 0:00:00]} 4. Nc3 {[%emt 0:00:00]} dxc4 {[%emt 0:00:00]} 5. e4 {[%emt 0:00:17]} Bb4 {[%emt 0:00:00]} 6. Bxc4 {[%emt 0:00:18]} Nxe4 {[%emt 0:00:00]} 7. O-O {[%emt 0:00:14]} Nxc3 {[%emt 0:00:00]} 8. bxc3 {[%emt 0:00:06]} Be7 {[%emt 0:00:00]} 9. Ne5 {[%emt 0:00:58]} O-O {[%emt 0:00:00]} 10. Qg4 {[%emt 0:00:05]} Nc6 {[%emt 0:00:00]} 11. Re1 {[%emt 0:00:04]} f5 {[%emt 0:00:00]} 12. Qf3 {[%emt 0:00:10]} Nxe5 {[%emt 0:00:02]} 13. Rxe5 {[%emt 0:00:06]} Kh8 {[%emt 0:00:05]} 14. Bf4 {[%emt 0:00:12]} Bd6 {[%emt 0:00:03]} 15. Re3 {[%emt 0:00:05]} Bxf4 {[%emt 0:01:59]} 16. Qxf4 {[%emt 0:00:54]} Qd6 {[%emt 0:01:24]} 17. Qxd6 {[%emt 0:00:05]} cxd6 {[%emt 0:00:03]} 18. Bxe6 {[%emt 0:00:09]} f4 {[%emt 0:19:23]} 19. Ree1 {[%emt 0:00:13]} Bxe6 {[%emt 0:13:19]} 20. Rxe6 {[%emt 0:00:07]} Rac8 {[%emt 0:00:04]} 21. Rxd6 {[%emt 0:00:10]} Rxc3 {[%emt 0:00:02]} 22. Rd7 {[%emt 0:00:13]} f3 {[%emt 0:22:30]} 23. Rxb7 {[%emt 0:31:53]} fxg2 {[%emt 0:11:39]} 24. Rab1 {[%emt 0:11:08]} Rd3 {[%emt 0:14:46]} 25. R1b3 {[%emt 0:27:11]} Rxd4 {[%emt 0:04:48]} 26. Rxa7 {[%emt 0:07:09]} h6 {[%emt 0:03:26]} 27. Kxg2 {[%emt 0:02:52]} Rdf4 {[%emt 0:01:14]} 28. f3 {[%emt 0:00:42]} R8f6 {[%emt 0:00:43]} 29. Re7 {[%emt 0:10:33]} Rg6+ {[%emt 0:01:09]} 30. Kf1 {[%emt 0:00:01]} Rc4 {[%emt 0:01:05]} 31. Rbe3 {[%emt 0:05:12]} Ra6 {[%emt 0:02:43]} 32. Re2 {[%emt 0:01:19]} Rc1+ {[%emt 0:01:21]} 33. Kf2 {[%emt 0:00:33]} Ra1 {[%emt 0:00:05]} 34. Rd7 {[%emt 0:00:27]} R1xa2 {[%emt 0:00:06]} 35. Rxa2 {[%emt 0:00:05]} Rxa2+ 1/2-1/2

[Event "46th GRE-chT Premier 2018"]
[Site "Rio Achaia"]
[Date "2018.07.10"]
[Round "1"]
[White "Erdos, Viktor"]
[Black "Lupulescu, Constantin"]
[Result "1/2-1/2"]
[ECO "D55"]
[WhiteElo "2619"]
[BlackElo "2617"]
[Annotator "ChessBase"]
[PlyCount "69"]
[EventDate "2018.07.10"]
[EventType "team-tourn"]
[EventCountry "GRE"]
[SourceTitle "playchess.com"]
[Source "ChessBase"]
[SourceQuality "1"]
[TimeControl "40/5400+30:1800+30"]

1. d4 {[%emt 0:00:00]} Nf6 {[%emt 0:00:00]} 2. c4 {[%emt 0:00:00]} e6 {[%emt 0:00:00]} 3. Nf3 {[%emt 0:00:26]} d5 {[%emt 0:00:00]} 4. Nc3 {[%emt 0:00:37]} Be7 {[%emt 0:00:00]} 5. Bg5 {[%emt 0:03:53]} h6 {[%emt 0:02:12]} 6. Bxf6 {[%emt 0:01:52]} Bxf6 {[%emt 0:00:20]} 7. e3 {[%emt 0:00:17]} O-O {[%emt 0:01:29]} 8. Rc1 {[%emt 0:00:20]} c6 {[%emt 0:00:33]} 9. Bd3 {[%emt 0:07:02]} Nd7 {[%emt 0:01:06]} 10. O-O {[%emt 0:00:42]} dxc4 {[%emt 0:00:32]} 11. Bxc4 {[%emt 0:00:08]} e5 {[%emt 0:00:18]} 12. h3 {[%emt 0:01:04]} exd4 {[%emt 0:01:42]} 13. exd4 {[%emt 0:00:09]} Nb6 {[%emt 0:00:12]} 14. Bb3 {[%emt 0:00:09]} Bf5 {[%emt 0:03:32]} 15. Re1 {[%emt 0:05:09]} Re8 {[%emt 0:02:35]} 16. Rxe8+ {[%emt 0:04:53]} Qxe8 {[%emt 0:00:07]} 17. Qd2 {[%emt 0:00:11]} Qd7 {[%emt 0:03:17]} 18. Re1 {[%emt 0:02:43]} a5 {[%emt 0:04:04]} 19. a3 {[%emt 0:05:50]} Re8 {[%emt 0:00:54]} 20. Rxe8+ {[%emt 0:03:34]} Qxe8 {[%emt 0:00:34]} 21. Qf4 {[%emt 0:01:56]} Be6 {[%emt 0:05:42]} 22. Bxe6 {[%emt 0:02:39]} Qxe6 {[%emt 0:01:47]} 23. Qc7 {[%emt 0:01:21]} Nc4 {[%emt 0:02:15]} 24. Qxb7 {[%emt 0:01:16]} Bxd4 {[%emt 0:00:51]} 25. Nxd4 {[%emt 0:03:11]} Qe1+ {[%emt 0:00:43]} 26. Kh2 {[%emt 0:00:06]} Qe5+ {[%emt 0:00:07]} 27. Kg1 {[%emt 0:01:42]} Qe1+ {[%emt 0:00:24]} 28. Kh2 {[%emt 0:00:04]} Qe5+ {[%emt 0:00:06]} 29. g3 {[%emt 0:00:04]} Qxd4 {[%emt 0:00:12]} 30. Qc8+ {[%emt 0:01:19]} Kh7 {[%emt 0:00:07]} 31. Qf5+ {[%emt 0:00:04]} Kg8 {[%emt 0:00:16]} 32. Kg2 {[%emt 0:03:17]} Nxb2 {[%emt 0:05:15]} 33. Qc8+ {[%emt 0:00:57]} Kh7 {[%emt 0:00:24]} 34. Qf5+ {[%emt 0:00:19]} Kg8 {[%emt 0:00:26]} 35. Qc8+ {[%emt 0:00:29]} 1/2-1/2

[Event "46th GRE-chT Premier 2018"]
[Site "Rio Achaia"]
[Date "2018.07.10"]
[Round "1"]
[White "Banikas, Hristos"]
[Black "Mihok, Oliver"]
[Result "1-0"]
[ECO "E73"]
[WhiteElo "2591"]
[BlackElo "2550"]
[Annotator "ChessBase"]
[PlyCount "119"]
[EventDate "2018.07.10"]
[EventType "team-tourn"]
[EventCountry "GRE"]
[SourceTitle "playchess.com"]
[Source "ChessBase"]
[SourceQuality "1"]
[TimeControl "40/5400+30:1800+30"]

1. d4 {[%emt 0:00:00]} Nf6 {[%emt 0:00:00]} 2. c4 {[%emt 0:00:00]} g6 {[%emt 0:00:00]} 3. Nc3 {[%emt 0:00:00]} Bg7 {[%emt 0:00:00]} 4. e4 {[%emt 0:00:03]} d6 {[%emt 0:00:05]} 5. Be2 {[%emt 0:00:19]} O-O {[%emt 0:00:32]} 6. Bg5 {[%emt 0:00:06]} c5 {[%emt 0:00:11]} 7. d5 {[%emt 0:00:06]} e6 {[%emt 0:00:22]} 8. Qd2 {[%emt 0:02:15]} exd5 {[%emt 0:00:37]} 9. exd5 {[%emt 0:00:05]} Qb6 {[%emt 0:00:29]} 10. Nf3 {[%emt 0:00:07]} Bf5 {[%emt 0:00:22]} 11. Nh4 {[%emt 0:06:09]} Ne4 {[%emt 0:00:22]} 12. Nxe4 {[%emt 0:00:06]} Bxe4 {[%emt 0:00:04]} 13. f3 {[%emt 0:01:29]} h6 {[%emt 0:00:44]} 14. Bxh6 {[%emt 0:01:31]} Bxh6 {[%emt 0:00:42]} 15. Qxh6 {[%emt 0:00:08]} Qxb2 {[%emt 0:00:23]} 16. O-O {[%emt 0:05:01]} Bc2 {[%emt 0:04:59]} 17. f4 {[%emt 0:07:05]} Nd7 {[%emt 0:07:27]} 18. f5 {[%emt 0:03:15]} Qg7 {[%emt 0:05:59]} 19. Qc1 {[%emt 0:06:18]} Qd4+ {[%emt 0:03:08]} 20. Kh1 {[%emt 0:01:50]} Qxh4 {[%emt 0:00:10]} 21. Qxc2 {[%emt 0:00:05]} Ne5 {[%emt 0:37:11]} 22. Rab1 {[%emt 0:01:21]} b6 {[%emt 0:05:02]} 23. Rb3 {[%emt 0:06:06]} Rfe8 {[%emt 0:09:38]} 24. Qc1 {[%emt 0:06:52]} Nd7 {[%emt 0:03:43]} 25. Rh3 {[%emt 0:01:21]} Qd4 {[%emt 0:01:24]} 26. f6 {[%emt 0:02:12]} Nxf6 {[%emt 0:01:29]} 27. Qh6 {[%emt 0:00:07]} Nh5 {[%emt 0:00:27]} 28. Bxh5 {[%emt 0:00:06]} Qg7 {[%emt 0:01:20]} 29. Qxg7+ {[%emt 0:02:37]} Kxg7 {[%emt 0:00:38]} 30. Bd1 {[%emt 0:00:04]} Re4 {[%emt 0:00:11]} 31. Rhf3 {[%emt 0:00:08]} f5 {[%emt 0:00:12]} 32. Rc3 {[%emt 0:00:34]} Rae8 {[%emt 0:00:34]} 33. g4 {[%emt 0:04:52]} fxg4 {[%emt 0:01:16]} 34. Rg1 {[%emt 0:00:28]} Rf8 {[%emt 0:01:30]} 35. Bxg4 {[%emt 0:03:04]} Rf2 {[%emt 0:02:01]} 36. Bd1 {[%emt 0:05:33]} Rh4 {[%emt 0:04:12]} 37. Rg2 {[%emt 0:03:48]} Rf1+ {[%emt 0:00:18]} 38. Rg1 {[%emt 0:00:05]} Rf2 {[%emt 0:00:10]} 39. h3 {[%emt 0:00:12]} Rxa2 {[%emt 0:00:13]} 40. Bc2 {[%emt 0:00:00]} Rh6 {[%emt 0:00:00]} 41. Re1 {[%emt 0:01:58]} g5 {[%emt 0:05:09]} 42. Rg1 Rh5 {[%emt 0:03:08]} 43. Bd1 {[%emt 0:02:17]} Rh4 {[%emt 0:01:36]} 44. Bg4 {[%emt 0:00:49]} Rh6 {[%emt 0:05:14]} 45. Be6 Rf6 {[%emt 0:01:46]} 46. Rxg5+ {[%emt 0:01:02]} Kh6 {[%emt 0:00:04]} 47. Rg2 {[%emt 0:00:06]} Rff2 {[%emt 0:01:34]} 48. Rxf2 {[%emt 0:00:51]} Rxf2 {[%emt 0:00:05]} 49. Ra3 {[%emt 0:00:05]} Rc2 50. Rxa7 {[%emt 0:03:43]} Rxc4 {[%emt 0:04:05]} 51. Rd7 {[%emt 0:00:04]} b5 {[%emt 0:00:24]} 52. Rxd6 {[%emt 0:00:03]} b4 {[%emt 0:00:20]} 53. Rb6 Kg5 {[%emt 0:03:58]} 54. d6 {[%emt 0:00:34]} Rd4 {[%emt 0:00:19]} 55. d7 {[%emt 0:00:52]} Kf6 {[%emt 0:00:28]} 56. Bg4+ {[%emt 0:01:24]} Ke7 {[%emt 0:00:19]} 57. Kg2 {[%emt 0:00:06]} Rxd7 {[%emt 0:02:02]} 58. Bxd7 {[%emt 0:00:06]} Kxd7 {[%emt 0:00:02]} 59. Kf2 {[%emt 0:00:37]} Kc7 {[%emt 0:00:07]} 60. Rg6 {[%emt 0:00:07] Kd6} 1-0

[Event "46th GRE-chT Premier 2018"]
[Site "Rio Achaia"]
[Date "2018.07.10"]
[Round "1"]
[White "Postny, Evgeny"]
[Black "Zysk, Robert"]
[Result "1-0"]
[ECO "E00"]
[WhiteElo "2585"]
[BlackElo "2421"]
[Annotator "RC"]
[PlyCount "59"]
[EventDate "2018.07.10"]
[EventType "team-tourn"]
[EventCountry "GRE"]
[SourceTitle "playchess.com"]
[Source "ChessBase"]
[SourceQuality "1"]
[TimeControl "40/5400+30:1800+30"]

1. d4 {[%emt 0:00:00]} e6 {[%emt 0:00:00]} 2. c4 {[%emt 0:00:00]} Bb4+ {[%emt 0:00:00]} 3. Bd2 {[%emt 0:00:00]} Bxd2+ {[%emt 0:00:00]} 4. Qxd2 {[%emt 0:00:00]} Nf6 {[%emt 0:00:06]} 5. Nc3 {[%emt 0:00:01]} d5 {[%emt 0:00:13]} 6. e3 {[%emt 0:00:15]} O-O {[%emt 0:01:40]} 7. Nf3 {[%emt 0:00:07]} Qe7 {[%emt 0:00:38]} 8. cxd5 {[%emt 0:00:30]} exd5 {[%emt 0:00:06]} 9. Bd3 {[%emt 0:00:03]} Nc6 {[%emt 0:08:14]} 10. h3 {[%emt 0:00:43]} Rd8 {[%emt 0:01:17]} 11. a3 {[%emt 0:00:25]} Ne4 {[%emt 0:05:46]} 12. Qc2 {[%emt 0:00:19]} Bf5 {[%emt 0:01:45]} 13. Bxe4 {[%emt 0:01:33]} dxe4 {[%emt 0:20:00]} 14. Nd2 {[%emt 0:00:21]} Re8 {[%emt 0:01:28]} 15. Ne2 {[%emt 0:07:18]} Rad8 {[%emt 0:03:53]} 16. Rc1 {[%emt 0:01:33]} Qg5 {[%emt 0:17:21]} 17. Qc5 {[%emt 0:15:26]} h6 {[%emt 0:05:44]} 18. g4 {[%emt 0:04:55]} Bg6 {[%emt 0:02:23]} 19. Qxg5 {[%emt 0:00:21]} hxg5 {[%emt 0:00:02]} 20. Rc5 {[%emt 0:01:24]} f6 {[%emt 0:00:45]} 21. h4 {[%emt 0:19:27]} gxh4 {[%emt 0:01:45]} 22. Rxh4 {[%emt 0:00:12]} Rd7 {[%emt 0:03:26]} 23. g5 {[%emt 0:06:33]} Nd8 {[%emt 0:11:44]} 24. gxf6 {[%emt 0:06:06]} gxf6 {[%emt 0:03:32]} 25. Nf4 {[%emt 0:04:58]} Bh7 {[%emt 0:06:24]} 26. Nd5 {[%emt 0:03:00]} Re6 {[%emt 0:01:13]} 27. Nxc7 {[%emt 0:04:00]} Rc6 {[%emt 0:02:40]} 28. Rxc6 {[%emt 0:06:18]} bxc6 {[%emt 0:00:08]} 29. Ne8 {[%emt 0:00:08]} Rf7 {[%emt 0:00:47]} 30. Nd6 {[%emt 0:01:00]} 1-0

[Event "46th GRE-chT Premier 2018"]
[Site "Rio Achaia"]
[Date "2018.07.10"]
[Round "1"]
[White "Sadzikowski, Daniel"]
[Black "Mitsis, Georgios"]
[Result "1-0"]
[ECO "A05"]
[WhiteElo "2567"]
[BlackElo "2350"]
[Annotator "ChessBase"]
[PlyCount "87"]
[EventDate "2018.07.10"]
[EventType "team-tourn"]
[EventCountry "GRE"]
[SourceTitle "playchess.com"]
[Source "ChessBase"]
[SourceQuality "1"]
[TimeControl "40/5400+30:1800+30"]

1. Nf3 {[%emt 0:00:00]} Nf6 {[%emt 0:00:00]} 2. g3 {[%emt 0:00:00]} d5 {[%emt 0:00:50]} 3. Bg2 {[%emt 0:00:05]} e6 {[%emt 0:00:35]} 4. O-O {[%emt 0:00:18]} c5 {[%emt 0:00:54]} 5. d4 {[%emt 0:05:25]} cxd4 {[%emt 0:00:35]} 6. b3 {[%emt 0:00:35]} Nc6 {[%emt 0:03:12]} 7. Nxd4 {[%emt 0:00:38]} Bc5 {[%emt 0:08:15]} 8. Nxc6 {[%emt 0:05:01]} bxc6 {[%emt 0:00:08]} 9. Nc3 {[%emt 0:00:15]} O-O {[%emt 0:00:59]} 10. Bb2 {[%emt 0:08:38]} Qe7 {[%emt 0:03:43]} 11. Na4 {[%emt 0:09:39]} Bd6 {[%emt 0:01:49]} 12. c4 {[%emt 0:00:14]} Bb7 {[%emt 0:03:14]} 13. Rc1 {[%emt 0:04:14]} Rfd8 {[%emt 0:10:40]} 14. cxd5 {[%emt 0:11:53]} cxd5 {[%emt 0:00:39]} 15. Qd3 {[%emt 0:00:13]} a5 {[%emt 0:15:06]} 16. Rc2 {[%emt 0:01:22]} Ba6 {[%emt 0:00:38]} 17. Qd2 {[%emt 0:09:40]} Bb5 {[%emt 0:10:32]} 18. Nc3 {[%emt 0:02:39]} Be8 {[%emt 0:10:51]} 19. Rfc1 {[%emt 0:07:43]} h6 {[%emt 0:04:54]} 20. Qd3 {[%emt 0:05:39]} Nd7 {[%emt 0:06:43]} 21. Na4 {[%emt 0:03:55]} Ne5 {[%emt 0:01:59]} 22. Qd4 {[%emt 0:00:31]} f6 {[%emt 0:05:38]} 23. Nb6 {[%emt 0:02:37]} Rab8 {[%emt 0:00:11]} 24. Nc8 {[%emt 0:04:23]} Qd7 {[%emt 0:00:30]} 25. Nxd6 {[%emt 0:00:17]} Qxd6 {[%emt 0:00:05]} 26. f4 {[%emt 0:11:00]} Nf7 {[%emt 0:03:16]} 27. Rc5 {[%emt 0:00:51]} a4 {[%emt 0:00:46]} 28. b4 {[%emt 0:00:56]} Qa6 {[%emt 0:01:07]} 29. e4 {[%emt 0:01:51]} dxe4 {[%emt 0:00:55]} 30. Qxe4 {[%emt 0:00:25]} a3 {[%emt 0:02:05]} 31. Bc3 {[%emt 0:00:38]} Qb6 {[%emt 0:01:18]} 32. Kh1 {[%emt 0:01:24]} Rd6 {[%emt 0:00:11]} 33. Be1 {[%emt 0:00:45]} Rbd8 {[%emt 0:01:16]} 34. Qb7 {[%emt 0:01:02]} Qxb7 {[%emt 0:00:49]} 35. Bxb7 {[%emt 0:00:02]} Rd1 {[%emt 0:01:27]} 36. Kg2 {[%emt 0:01:29]} e5 {[%emt 0:00:12]} 37. Bf3 {[%emt 0:01:04]} Rxc1 {[%emt 0:01:48]} 38. Rxc1 {[%emt 0:00:02]} Bd7 {[%emt 0:00:27]} 39. Rc3 {[%emt 0:01:23]} exf4 {[%emt 0:00:36]} 40. gxf4 {[%emt 0:00:00]} Be6 {[%emt 0:00:00]} 41. Rxa3 {[%emt 0:03:47]} Rd4 {[%emt 0:02:58]} 42. b5 {[%emt 0:01:57]} Bd5 {[%emt 0:18:46]} 43. b6 {[%emt 0:07:01]} Nd6 {[%emt 0:00:18]} 44. Ra7 {[%emt 0:02:45]} 1-0

[Event "46th GRE-chT Premier 2018"]
[Site "Rio Achaia"]
[Date "2018.07.10"]
[Round "1"]
[White "Boruchovsky, Avital"]
[Black "Warmerdam, Max"]
[Result "1/2-1/2"]
[ECO "A34"]
[WhiteElo "2558"]
[BlackElo "2424"]
[Annotator "ChessBase"]
[PlyCount "126"]
[EventDate "2018.07.10"]
[EventType "team-tourn"]
[EventCountry "GRE"]
[SourceTitle "playchess.com"]
[Source "ChessBase"]
[SourceQuality "1"]
[TimeControl "40/5400+30:1800+30"]

1. Nf3 {[%emt 0:00:00]} Nf6 {[%emt 0:00:00]} 2. c4 {[%emt 0:00:00]} c5 {[%emt 0:00:00]} 3. Nc3 {[%emt 0:00:01]} d5 {[%emt 0:00:00]} 4. cxd5 {[%emt 0:00:05]} Nxd5 {[%emt 0:00:05]} 5. e4 {[%emt 0:00:08]} Nb4 {[%emt 0:00:22]} 6. Bc4 {[%emt 0:00:08]} Nd3+ {[%emt 0:00:32]} 7. Ke2 {[%emt 0:00:04]} Nf4+ {[%emt 0:00:04]} 8. Kf1 {[%emt 0:00:04]} Ne6 {[%emt 0:01:15]} 9. b4 {[%emt 0:00:06]} g6 {[%emt 0:08:27]} 10. bxc5 {[%emt 0:00:35]} Bg7 {[%emt 0:00:06]} 11. Ba3 {[%emt 0:02:16]} O-O {[%emt 0:00:25]} 12. Rb1 {[%emt 0:18:37]} Nc6 {[%emt 0:00:08]} 13. Ne2 {[%emt 0:02:18]} Qa5 {[%emt 0:21:29]} 14. Qc1 {[%emt 0:02:32]} b6 {[%emt 0:13:11]} 15. Bd5 {[%emt 0:31:21]} Ba6 {[%emt 0:02:00]} 16. Bxc6 {[%emt 0:00:18]} Nf4 {[%emt 0:00:08]} 17. Nfg1 {[%emt 0:00:36]} Rac8 {[%emt 0:15:57]} 18. cxb6 {[%emt 0:07:59]} Qg5 {[%emt 0:09:29]} 19. g3 {[%emt 0:02:37]} Nxe2 {[%emt 0:02:20]} 20. Nxe2 {[%emt 0:01:25]} Qg4 {[%emt 0:00:38]} 21. b7 {[%emt 0:05:48]} Bxe2+ {[%emt 0:17:22]} 22. Kg1 {[%emt 0:00:17]} Bd3 {[%emt 0:03:14]} 23. bxc8=Q {[%emt 0:00:49]} Rxc8 {[%emt 0:00:02]} 24. Rb3 {[%emt 0:01:49]} Bxe4 {[%emt 0:01:16]} 25. Bxe4 {[%emt 0:00:37]} Rxc1+ {[%emt 0:00:03]} 26. Bxc1 {[%emt 0:00:06]} Qxe4 {[%emt 0:00:07]} 27. Rb8+ {[%emt 0:00:03]} Bf8 {[%emt 0:00:06]} 28. d3 {[%emt 0:00:03]} Qe1+ {[%emt 0:00:48]} 29. Kg2 {[%emt 0:00:10]} Qe5 {[%emt 0:00:02]} 30. Rb3 {[%emt 0:04:43]} Qd5+ {[%emt 0:03:21]} 31. f3 {[%emt 0:01:04]} a5 {[%emt 0:01:09]} 32. Re1 {[%emt 0:01:44]} a4 {[%emt 0:00:47]} 33. Rb8 {[%emt 0:02:02]} Kg7 {[%emt 0:00:29]} 34. g4 {[%emt 0:03:54]} f6 {[%emt 0:00:51]} 35. Rb2 {[%emt 0:06:40]} Qxd3 {[%emt 0:00:11]} 36. Rd2 {[%emt 0:00:11]} Qc3 {[%emt 0:00:22]} 37. g5 {[%emt 0:00:31]} Qc6 {[%emt 0:00:53]} 38. Bb2 {[%emt 0:00:28]} Kf7 {[%emt 0:00:14]} 39. gxf6 {[%emt 0:00:22]} exf6 {[%emt 0:00:05]} 40. Rc1 {[%emt 0:00:00]} Qb7 {[%emt 0:00:00]} 41. Rdc2 {[%emt 0:02:09]} Bd6 {[%emt 0:03:16]} 42. Rd1 {[%emt 0:07:02]} Be7 {[%emt 0:07:16]} 43. Rd4 {[%emt 0:01:07]} a3 {[%emt 0:00:53]} 44. Bc1 {[%emt 0:00:08]} g5 {[%emt 0:05:15]} 45. Rdc4 {[%emt 0:01:42]} Kg6 {[%emt 0:00:59]} 46. h4 {[%emt 0:02:26]} h6 {[%emt 0:03:23]} 47. Be3 {[%emt 0:00:26]} Bd6 {[%emt 0:08:40]} 48. hxg5 {[%emt 0:09:38]} hxg5 {[%emt 0:00:11]} 49. R4c3 {[%emt 0:01:09]} Qh7 {[%emt 0:00:24]} 50. Bf2 {[%emt 0:01:27]} Qh2+ {[%emt 0:00:35]} 51. Kf1 {[%emt 0:00:06]} Qh1+ {[%emt 0:01:01]} 52. Ke2 {[%emt 0:00:08]} Qg2 {[%emt 0:01:25]} 53. Rc4 {[%emt 0:01:28]} Bg3 {[%emt 0:00:58]} 54. Ke3 {[%emt 0:00:07]} Bf4+ {[%emt 0:01:41]} 55. Ke2 {[%emt 0:00:08]} Bg3 {[%emt 0:00:03]} 56. Ke3 {[%emt 0:00:04]} Bf4+ {[%emt 0:02:51]} 57. Ke2 {[%emt 0:00:06]} f5 {[%emt 0:00:03]} 58. Rxf4 {[%emt 0:04:21]} gxf4 {[%emt 0:00:05]} 59. Rc3 {[%emt 0:00:10]} Qh1 {[%emt 0:00:21]} 60. Rxa3 {[%emt 0:00:09]} Qb1 {[%emt 0:00:32]} 61. Ra6+ {[%emt 0:00:47]} Kg5 {[%emt 0:00:04]} 62. Rb6 {[%emt 0:01:03]} Qxa2+ {[%emt 0:00:21]} 63. Kf1 {[%emt 0:00:07]} Qc4+ {[%emt 0:00:14]} 1/2-1/2

[Event "46th GRE-chT Premier 2018"]
[Site "Rio Achaia"]
[Date "2018.07.10"]
[Round "1"]
[White "Nikolov, Momchil"]
[Black "David, Alberto"]
[Result "1/2-1/2"]
[ECO "E53"]
[WhiteElo "2551"]
[BlackElo "2549"]
[Annotator "ChessBase"]
[PlyCount "39"]
[EventDate "2018.07.10"]
[EventType "team-tourn"]
[EventCountry "GRE"]
[SourceTitle "playchess.com"]
[Source "ChessBase"]
[SourceQuality "1"]
[TimeControl "40/5400+30:1800+30"]

1. d4 {[%emt 0:00:00]} Nf6 {[%emt 0:00:00]} 2. c4 {[%emt 0:00:00]} e6 {[%emt 0:00:06]} 3. Nc3 {[%emt 0:00:00]} Bb4 {[%emt 0:00:34]} 4. e3 {[%emt 0:00:03]} O-O {[%emt 0:00:23]} 5. Bd3 {[%emt 0:00:16]} d5 {[%emt 0:04:55]} 6. Nf3 {[%emt 0:00:14]} c5 {[%emt 0:00:37]} 7. O-O {[%emt 0:00:11]} cxd4 {[%emt 0:01:17]} 8. exd4 {[%emt 0:00:14]} dxc4 {[%emt 0:00:53]} 9. Bxc4 {[%emt 0:00:08]} b6 {[%emt 0:02:08]} 10. Bg5 {[%emt 0:02:03]} Bb7 {[%emt 0:02:13]} 11. Rc1 {[%emt 0:02:08]} Bxc3 {[%emt 0:10:51]} 12. Rxc3 {[%emt 0:03:55]} Nbd7 {[%emt 0:00:22]} 13. Qe2 {[%emt 0:10:17]} Qb8 {[%emt 0:04:54]} 14. Bh4 {[%emt 0:27:43]} Qf4 {[%emt 0:10:08]} 15. Bg3 {[%emt 0:07:56]} Qe4 {[%emt 0:02:38]} 16. Re3 {[%emt 0:14:39]} Qc6 {[%emt 0:04:45]} 17. Bb5 {[%emt 0:01:56]} Qd5 {[%emt 0:00:14]} 18. Bc4 {[%emt 0:00:23]} Qc6 {[%emt 0:04:36]} 19. Bb5 {[%emt 0:01:12]} Qd5 {[%emt 0:00:14]} 20. Bc4 {[%emt 0:00:09]} 1/2-1/2

[Event "46th GRE-chT Premier 2018"]
[Site "Rio Achaia"]
[Date "2018.07.10"]
[Round "1"]
[White "Baron, Tal"]
[Black "Tzermiadianos, Andreas"]
[Result "1-0"]
[ECO "B01"]
[WhiteElo "2530"]
[BlackElo "2437"]
[Annotator "RC"]
[PlyCount "71"]
[EventDate "2018.07.10"]
[EventType "team-tourn"]
[EventCountry "GRE"]
[SourceTitle "playchess.com"]
[Source "ChessBase"]
[SourceQuality "1"]
[TimeControl "40/5400+30:1800+30"]

1. e4 {[%emt 0:00:00]} d5 {[%emt 0:00:00]} 2. exd5 {[%emt 0:00:00]} Qxd5 {[%emt 0:00:01]} 3. Nc3 {[%emt 0:00:00]} Qa5 {[%emt 0:00:11]} 4. Bc4 {[%emt 0:00:00]} Nf6 {[%emt 0:00:16]} 5. d3 {[%emt 0:00:32]} Bg4 {[%emt 0:00:52]} 6. f3 {[%emt 0:00:26]} Bd7 {[%emt 0:00:09]} 7. Bd2 {[%emt 0:00:36]} Qb6 {[%emt 0:00:44]} 8. Qe2 {[%emt 0:01:08]} e6 {[%emt 0:03:48]} 9. f4 {[%emt 0:04:03]} c5 {[%emt 0:15:40]} 10. f5 {[%emt 0:01:19]} Nc6 {[%emt 0:03:42]} 11. fxe6 {[%emt 0:03:54]} fxe6 {[%emt 0:03:10]} 12. Nf3 {[%emt 0:00:19]} Nd4 {[%emt 0:11:33]} 13. Nxd4 {[%emt 0:01:28]} cxd4 {[%emt 0:00:02]} 14. Ne4 {[%emt 0:01:36]} Bb4 {[%emt 0:17:35]} 15. O-O {[%emt 0:05:43]} Bxd2 {[%emt 0:04:18]} 16. Nxf6+ {[%emt 0:05:10]} gxf6 {[%emt 0:00:02]} 17. Qxd2 {[%emt 0:00:04]} Rf8 {[%emt 0:08:53]} 18. Qh6 {[%emt 0:04:03]} O-O-O {[%emt 0:00:34]} 19. Rxf6 {[%emt 0:00:46]} Rxf6 {[%emt 0:00:23]} 20. Qxf6 {[%emt 0:00:02]} Qxb2 {[%emt 0:00:22]} 21. Re1 {[%emt 0:00:49]} Qxc2 {[%emt 0:04:53]} 22. Qf4 {[%emt 0:06:59]} e5 {[%emt 0:06:16]} 23. Qxe5 {[%emt 0:02:25]} Qd2 {[%emt 0:00:06]} 24. h3 {[%emt 0:02:33]} Re8 {[%emt 0:07:11]} 25. Qc5+ {[%emt 0:00:04]} Kd8 {[%emt 0:00:07]} 26. Rxe8+ {[%emt 0:00:30]} Kxe8 {[%emt 0:00:24]} 27. Qxd4 {[%emt 0:00:36]} h6 {[%emt 0:00:17]} 28. Qe5+ {[%emt 0:04:01]} Kd8 {[%emt 0:00:11]} 29. Qb8+ {[%emt 0:00:30]} Ke7 {[%emt 0:02:31]} 30. Qxb7 {[%emt 0:00:25]} Qe1+ {[%emt 0:01:13]} 31. Kh2 {[%emt 0:00:02]} Qe5+ {[%emt 0:00:06]} 32. g3 {[%emt 0:00:05]} Qe2+ {[%emt 0:01:15]} 33. Qg2 {[%emt 0:00:02]} Qh5 {[%emt 0:00:12]} 34. h4 Kd6 {[%emt 0:00:39]} 35. Qf2 {[%emt 0:02:15]} a5 {[%emt 0:01:39]} 36. d4 {Kd5} 1-0